bitfinex-derivatives/quotes_BNBF0:USTF0_20260114
["timestamp","ask_amount","ask_price","bid_price","bid_amount"]
[1768404601847,0.75121138,942.59,940.8,0.18471436]
[1768404602146,0.75121138,942.58,940.8,0.18471436]
[1768404602343,0.75121138,942.57,940.8,0.18471436]
[1768404602546,0.75121138,942.56,940.8,0.18471436]
[1768404602747,0.75121138,942.55,940.8,0.18471436]
[1768404602947,0.75121138,942.54,940.8,0.18471436]
[1768404603246,0.75121138,942.53,940.8,0.18471436]
[1768404603444,0.75121138,942.52,940.8,0.18471436]
[1768404603647,0.75121138,942.51,940.8,0.18471436]
[1768404603845,0.75121138,942.5,940.8,0.18471436]
[1768404604046,0.75121138,942.49,940.8,0.18471436]
[1768404604250,0.75121138,942.48,940.8,0.18471436]
[1768404604546,0.75121138,942.47,940.8,0.18471436]
[1768404604748,0.75121138,942.46,940.8,0.18471436]
[1768404604945,0.75121138,942.45,940.8,0.18471436]
[1768404605146,0.75121138,942.44,940.8,0.18471436]
[1768404605349,0.75121138,942.43,940.8,0.18471436]
[1768404605651,0.75121138,942.42,940.8,0.18471436]
[1768404605851,0.75121138,942.41,940.8,0.18471436]
[1768404606050,0.75121138,942.4,940.8,0.18471436]
[1768404606348,0.75121138,942.39,940.8,0.18471436]
[1768404606651,0.75121138,942.38,940.8,0.18471436]
[1768404606850,0.75121138,942.37,940.8,0.18471436]
[1768404607057,0.75121138,942.36,940.8,0.18471436]
[1768404607248,0.75121138,942.35,940.8,0.18471436]
[1768404607551,0.75121138,942.34,940.8,0.18471436]
[1768404607747,0.75121138,942.33,940.8,0.18471436]
[1768404607947,0.75121138,942.32,940.8,0.18471436]
[1768404608146,0.75121138,942.31,940.8,0.18471436]
[1768404608350,0.75121138,942.3,940.8,0.18471436]
[1768404608547,0.75121138,942.29,940.8,0.18471436]
[1768404608748,0.18471436,942.92,940.8,0.18471436]
[1768404608749,0.75121138,942.28,940.8,0.18471436]
[1768404608953,0.75121138,942.27,940.8,0.18471436]
[1768404609148,0.75121138,942.26,940.8,0.18471436]
[1768404609354,0.75121138,942.25,940.8,0.18471436]
[1768404609552,0.75121138,942.24,940.8,0.18471436]
[1768404609751,0.75121138,942.23,940.8,0.18471436]
[1768404610053,0.75121138,942.22,940.8,0.18471436]
[1768404610252,0.75121138,942.21,940.8,0.18471436]
[1768404610454,0.75121138,942.2,940.8,0.18471436]
[1768404610651,0.75121138,942.19,940.8,0.18471436]
[1768404610852,0.75121138,942.18,940.8,0.18471436]
[1768404611050,0.75121138,942.17,939.58,2.5741607]
[1768404611255,0.75121138,942.16,940.51,0.1848257]
[1768404611455,0.75121138,942.15,939.49,2.5741607]
[1768404611651,0.75121138,942.14,939.45,2.5741607]
[1768404611854,0.75121138,942.13,940.51,0.18484092]
[1768404612054,0.75121138,942.12,939.45,2.5741607]
[1768404612258,0.75121138,942.11,940.12,0.18483601]
[1768404612458,0.75121138,942.1,940.12,0.18483601]
[1768404612655,0.75121138,942.09,940.12,0.18483601]
[1768404612857,0.75121138,942.08,940.12,0.18483601]
[1768404613057,0.75121138,942.07,940.12,0.18483601]
[1768404613258,0.75121138,942.06,940.12,0.18483601]
[1768404613455,0.75121138,942.05,940.12,0.18483601]
[1768404613756,0.75121138,942.04,940.12,0.18483601]
[1768404613956,0.75121138,942.03,940.12,0.18483601]
[1768404614159,0.75121138,942.02,940.12,0.18483601]
[1768404614457,0.75121138,942.01,940.12,0.18483601]
[1768404614759,0.75121138,942.0,940.12,0.18483601]
[1768404614955,0.75121138,941.99,940.12,0.18483601]
[1768404615156,0.75121138,941.98,940.12,0.18483601]
[1768404615357,0.75121138,941.97,940.12,0.18483601]
[1768404615556,0.75121138,941.96,940.12,0.18483601]
[1768404615758,0.75121138,941.95,940.12,0.18483601]
[1768404615956,0.75121138,941.94,940.12,0.18483601]
[1768404616159,0.75121138,941.93,940.12,0.18483601]
[1768404616358,0.75121138,941.92,940.12,0.18483601]
[1768404616661,0.75121138,941.91,940.12,0.18483601]
[1768404616958,0.75121138,941.9,940.12,0.18483601]
[1768404617157,0.75121138,941.89,940.12,0.18483601]
[1768404617358,0.75121138,941.88,940.12,0.18483601]
[1768404617557,0.75121138,941.87,940.12,0.18483601]
[1768404617758,0.75121138,941.86,940.12,0.18483601]
[1768404617962,0.75121138,941.85,940.12,0.18483601]
[1768404618260,0.75121138,941.84,940.12,0.18483601]
[1768404618462,0.75121138,941.83,940.12,0.18483601]
[1768404618761,0.75121138,941.82,940.12,0.18483601]
[1768404618962,0.75121138,941.81,940.12,0.18483601]
[1768404619257,0.75121138,941.8,940.12,0.18483601]
[1768404619459,0.75121138,941.79,940.12,0.18483601]
[1768404619661,0.75121138,941.78,940.12,0.18483601]
[1768404619862,0.75121138,941.77,940.12,0.18483601]
[1768404620063,0.75121138,941.76,940.12,0.18483601]
[1768404620260,0.75121138,941.75,940.12,0.18483601]
[1768404620461,0.75121138,941.74,940.12,0.18483601]
[1768404620662,0.75121138,941.73,940.12,0.18483601]
[1768404620861,0.75121138,941.72,940.12,0.18483601]
[1768404621061,0.75121138,941.71,940.12,0.18483601]
[1768404621265,0.75121138,941.7,940.12,0.18483601]
[1768404621561,0.75121138,941.69,940.12,0.18483601]
[1768404621763,0.75121138,941.68,940.12,0.18483601]
[1768404621960,0.75121138,941.67,940.12,0.18483601]
[1768404622164,0.75121138,941.66,940.12,0.18483601]
[1768404622364,0.75121138,941.65,940.12,0.18483601]
[1768404622565,0.75121138,941.64,940.12,0.18483601]
[1768404622765,0.75121138,941.63,940.12,0.18483601]
[1768404623066,0.75121138,941.62,940.12,0.18483601]
[1768404623366,0.01077689,942.58,940.12,0.18483601]
[1768404623562,0.75460118,942.57,940.12,0.18483601]
[1768404623767,0.75460118,942.56,940.12,0.18483601]
[1768404623966,0.75460118,942.55,940.12,0.18483601]
[1768404624163,0.75460118,942.54,940.12,0.18483601]
[1768404624470,0.75460118,942.53,940.12,0.18483601]
[1768404624768,0.75460118,942.52,940.12,0.18483601]
[1768404624968,0.75460118,942.51,940.12,0.18483601]
[1768404625167,0.75460118,942.5,940.12,0.18483601]
[1768404625468,0.75460118,942.49,940.12,0.18483601]
[1768404625668,0.75460118,942.48,940.12,0.18483601]
[1768404625863,0.75460118,942.47,940.12,0.18483601]
[1768404626166,0.75460118,942.46,940.12,0.18483601]
[1768404626367,0.75460118,942.45,940.12,0.18483601]
[1768404626668,0.75460118,942.44,940.12,0.18483601]
[1768404626967,0.75460118,942.43,940.12,0.18483601]
[1768404627163,0.75460118,942.42,940.12,0.18483601]
[1768404627364,0.75460118,942.41,940.12,0.18483601]
[1768404627565,0.75460118,942.4,940.12,0.18483601]
[1768404627763,0.75460118,942.39,940.12,0.18483601]
[1768404628067,0.75460118,942.38,940.12,0.18483601]
[1768404628267,0.75460118,942.37,940.12,0.18483601]
[1768404628466,0.75460118,942.36,940.12,0.18483601]
[1768404628667,0.75460118,942.35,940.12,0.18483601]
[1768404628968,0.75460118,942.34,940.12,0.18483601]
[1768404629268,0.75460118,942.33,940.12,0.18483601]
[1768404629462,0.75460118,942.32,940.12,0.18483601]
[1768404629762,0.75460118,942.31,940.12,0.18483601]
[1768404629963,0.75460118,942.3,940.12,0.18483601]
[1768404630165,0.75460118,942.29,940.12,0.18483601]
[1768404630364,0.75460118,942.28,940.12,0.18483601]
[1768404630564,0.75460118,942.27,940.12,0.18483601]
[1768404630766,0.75549808,942.26,940.12,0.18483601]
[1768404630967,0.75549808,942.25,940.12,0.18483601]
[1768404631168,0.75549808,942.24,940.12,0.18483601]
[1768404631464,0.75549808,942.23,940.12,0.18483601]
[1768404631667,0.75549808,942.22,940.12,0.18483601]
[1768404631865,0.75549808,942.21,940.12,0.18483601]
[1768404632065,0.75549808,942.2,940.12,0.18483601]
[1768404632264,0.75549808,942.19,940.12,0.18483601]
[1768404632570,0.75549808,942.18,940.12,0.18483601]
[1768404632866,0.75549808,942.17,940.12,0.18483601]
[1768404633066,0.75549808,942.16,940.12,0.18483601]
[1768404633266,0.75549808,942.15,940.12,0.18483601]
[1768404633469,0.75549808,942.14,940.12,0.18483601]
[1768404633768,0.75549808,942.13,940.12,0.18483601]
[1768404633966,0.75549808,942.12,940.12,0.18483601]
[1768404634166,0.75549808,942.11,940.12,0.18483601]
[1768404634368,0.75549808,942.1,940.12,0.18483601]
[1768404634567,0.75549808,942.09,940.12,0.18483601]
[1768404634767,0.75549808,942.08,940.12,0.18483601]
[1768404634966,0.75549808,942.07,940.12,0.18483601]
[1768404635166,0.75549808,942.06,940.12,0.18483601]
[1768404635468,0.75549808,942.05,940.12,0.18483601]
[1768404635664,0.75549808,942.04,940.12,0.18483601]
[1768404635864,0.75549808,942.03,940.12,0.18483601]
[1768404636067,0.75549808,942.02,940.12,0.18483601]
[1768404636266,0.75549808,942.01,940.12,0.18483601]
[1768404636468,0.75549808,942.0,940.12,0.18483601]
[1768404636667,0.75549808,941.99,940.12,0.18483601]
[1768404636867,0.75549808,941.98,940.12,0.18483601]
[1768404637167,0.75549808,941.97,940.12,0.18483601]
[1768404637366,0.75549808,941.96,940.12,0.18483601]
[1768404637567,0.75549808,941.95,940.12,0.18483601]
[1768404637870,1.44,942.46,940.12,0.18483601]
[1768404637871,0.75549808,941.94,940.12,0.18483601]
[1768404638071,0.75549808,941.93,940.12,0.18483601]
[1768404638267,0.75549808,941.92,940.12,0.18483601]
[1768404638470,0.75549808,941.91,940.12,0.18483601]
[1768404638666,0.75549808,941.9,940.12,0.18483601]
[1768404638867,0.75549808,941.89,940.12,0.18483601]
[1768404639070,0.75549808,941.88,940.12,0.18483601]
[1768404639368,0.75549808,941.87,940.12,0.18483601]
[1768404639570,0.75549808,941.86,940.12,0.18483601]
[1768404639768,0.75549808,941.85,940.12,0.18483601]
[1768404639974,0.75549808,941.84,940.12,0.18483601]
[1768404640173,0.75549808,941.83,940.12,0.18483601]
[1768404640473,0.75549808,941.82,940.12,0.18483601]
[1768404640674,0.75549808,941.81,940.12,0.18483601]
[1768404640870,0.75549808,941.8,940.12,0.18483601]
[1768404641168,0.75549808,941.79,940.12,0.18483601]
[1768404641372,0.75549808,941.78,940.12,0.18483601]
[1768404641574,0.75549808,941.77,940.12,0.18483601]
[1768404641769,0.75549808,941.76,940.12,0.18483601]
[1768404641974,0.75549808,941.75,940.12,0.18483601]
[1768404642171,0.75549808,941.74,940.12,0.18483601]
[1768404642375,0.75549808,941.73,940.12,0.18483601]
[1768404642572,0.75549808,941.72,940.12,0.18483601]
[1768404642776,0.75549808,941.71,940.12,0.18483601]
[1768404643073,0.75549808,941.7,940.12,0.18483601]
[1768404643278,0.75549808,941.69,940.12,0.18483601]
[1768404643578,0.75549808,941.68,940.12,0.18483601]
[1768404643774,0.75549808,941.67,940.12,0.18483601]
[1768404643972,0.75549808,941.66,940.12,0.18483601]
[1768404644173,0.75549808,941.65,940.12,0.18483601]
[1768404644377,0.75549808,941.64,940.12,0.18483601]
[1768404644576,0.75549808,941.63,940.12,0.18483601]
[1768404644775,0.75549808,941.62,940.12,0.18483601]
[1768404644976,0.75549808,941.61,940.12,0.18483601]
[1768404645176,0.75549808,941.6,940.12,0.18483601]
[1768404645373,0.75549808,941.59,940.12,0.18483601]
[1768404645574,0.75549808,941.58,940.12,0.18483601]
[1768404645774,0.75549808,941.57,940.12,0.18483601]
[1768404645976,0.75549808,941.56,940.12,0.18483601]
[1768404646173,0.75549808,941.55,940.12,0.18483601]
[1768404646377,0.75549808,941.54,940.12,0.18483601]
[1768404646576,0.75549808,941.53,940.12,0.18483601]
[1768404646779,0.75549808,941.52,940.12,0.18483601]
[1768404646979,0.75549808,941.51,940.12,0.18483601]
[1768404647276,0.75549808,941.5,940.12,0.18483601]
[1768404647478,0.75549808,941.49,940.12,0.18483601]
[1768404647677,0.75549808,941.48,940.12,0.18483601]
[1768404647877,0.75549808,941.47,940.12,0.18483601]
[1768404648079,0.75549808,941.46,940.12,0.18483601]
[1768404648280,0.75549808,941.45,940.12,0.18483601]
[1768404648577,0.75549808,941.44,940.12,0.18483601]
[1768404648779,0.75549808,941.43,940.12,0.18483601]
[1768404649078,0.75824682,941.42,940.12,0.18483601]
[1768404649276,0.01285247,942.39,940.12,0.18483601]
[1768404649277,0.75824682,941.41,940.12,0.18483601]
[1768404649481,0.75824682,941.4,940.12,0.18483601]
[1768404649676,0.75824682,941.39,940.12,0.18483601]
[1768404649879,0.75824682,941.38,940.12,0.18483601]
[1768404650080,0.75824682,941.37,940.12,0.18483601]
[1768404650282,0.75824682,941.36,940.12,0.18483601]
[1768404650482,0.75824682,941.35,940.12,0.18483601]
[1768404650678,0.75824682,941.34,940.12,0.18483601]
[1768404650878,0.75824682,941.33,940.12,0.18483601]
[1768404651178,0.75884935,941.32,940.12,0.18483601]
[1768404651383,1.44,942.46,940.12,0.18483601]
[1768404651580,0.75884949,942.45,940.12,0.18483601]
[1768404651784,0.01169934,942.27,940.12,0.18483601]
[1768404651981,0.75884949,942.26,940.12,0.18483601]
[1768404652182,0.75884949,942.25,940.18,2.5741607]
[1768404652485,0.75884949,942.24,940.18,2.5741607]
[1768404652684,0.75884949,942.23,940.18,2.5741607]
[1768404652982,0.75884949,942.22,940.18,2.5741607]
[1768404653183,0.75884949,942.21,940.19,2.5741607]
[1768404653384,0.75884949,942.2,940.19,2.5741607]
[1768404653584,0.75884949,942.19,940.19,2.5741607]
[1768404653787,1.44,942.46,940.2,2.5741607]
[1768404653788,0.75884949,942.18,940.2,2.5741607]
[1768404653985,0.75884949,942.17,940.2,2.5741607]
[1768404654185,0.75884949,942.16,940.2,2.5741607]
[1768404654382,0.75884949,942.15,940.2,2.5741607]
[1768404654587,0.75884949,942.14,940.2,2.5741607]
[1768404654788,0.75884949,942.13,940.2,2.5741607]
[1768404655087,0.75884949,942.12,940.2,2.5741607]
[1768404655288,1.44,942.46,940.12,0.18483601]
[1768404655289,0.75884949,942.11,940.22,2.5741607]
[1768404655489,0.75884949,942.1,940.22,2.5741607]
[1768404655787,0.75884949,942.09,940.22,2.5741607]
[1768404655987,0.75884949,942.08,940.22,2.5741607]
[1768404656184,0.75884949,942.07,940.22,2.5741607]
[1768404656390,0.75884949,942.06,940.22,2.5741607]
[1768404656590,0.75884949,942.05,940.22,2.5741607]
[1768404656791,0.75884949,942.04,940.22,2.5741607]
[1768404657086,0.75884949,942.03,940.22,2.5741607]
[1768404657287,0.75884949,942.02,940.22,2.5741607]
[1768404657489,0.75884949,942.01,940.22,2.5741607]
[1768404657686,0.75884949,942.0,940.22,2.5741607]
[1768404657887,0.75884949,941.99,940.22,2.5741607]
[1768404658089,0.75884949,941.98,940.22,2.5741607]
[1768404658291,0.75884949,941.97,940.22,2.5741607]
[1768404658491,0.75884949,941.96,940.23,2.5741607]
[1768404658692,0.75884949,941.95,940.23,2.5741607]
[1768404658894,0.75884949,941.94,940.2,2.5741607]
[1768404659093,0.75884949,941.93,940.2,2.5741607]
[1768404659293,0.75884949,941.92,940.2,2.5741607]
[1768404659494,0.75884949,941.91,940.21,2.5741607]
[1768404659694,0.75884949,941.9,940.21,2.5741607]
[1768404659897,0.75884949,941.89,940.21,2.5741607]
[1768404660193,0.75884949,941.88,940.21,2.5741607]
[1768404660392,0.75884949,941.87,940.21,2.5741607]
[1768404660695,0.75884949,941.86,940.21,2.5741607]
[1768404660996,0.75884949,941.85,940.21,2.5741607]
[1768404661292,0.75884949,941.84,940.21,2.5741607]
[1768404661596,0.75884949,941.83,940.22,2.5741607]
[1768404661798,0.75884949,941.82,940.22,2.5741607]
[1768404661996,0.75884949,941.81,940.22,2.5741607]
[1768404662196,0.75884949,941.8,940.22,2.5741607]
[1768404662495,0.75884949,941.79,940.22,2.5741607]
[1768404662696,0.75884949,941.78,940.22,2.5741607]
[1768404662993,0.75884949,941.77,940.22,2.5741607]
[1768404663197,0.75884949,941.76,940.24,2.5741607]
[1768404663496,0.75884949,941.75,940.24,2.5741607]
[1768404663695,0.75884949,941.74,940.26,2.5741607]
[1768404663992,0.75884949,941.73,940.26,2.5741607]
[1768404664193,0.75884949,941.72,940.27,2.5741607]
[1768404664395,0.75884949,941.71,940.27,2.5741607]
[1768404664692,0.75884949,941.7,940.27,2.5741607]
[1768404664891,0.75884949,941.69,940.27,2.5741607]
[1768404665096,0.75884949,941.68,940.27,2.5741607]
[1768404665293,0.75884949,941.67,940.27,2.5741607]
[1768404665496,0.75884949,941.66,940.27,2.5741607]
[1768404665697,0.75884949,941.65,940.26,2.5741607]
[1768404665893,0.75884949,941.64,940.26,2.5741607]
[1768404666099,0.75884949,941.63,940.26,2.5741607]
[1768404666294,0.75884949,941.62,940.26,2.5741607]
[1768404666499,0.75884949,941.61,940.26,2.5741607]
[1768404666696,0.75884949,941.6,940.26,2.5741607]
[1768404666898,0.75884949,941.59,940.26,2.5741607]
[1768404667097,0.75884949,941.58,940.26,2.5741607]
[1768404667396,0.75884949,941.57,940.26,2.5741607]
[1768404667597,0.75884949,941.56,940.26,2.5741607]
[1768404667797,1.702,941.61,940.26,2.5741607]
[1768404668094,0.75835369,941.6,940.26,2.5741607]
[1768404668293,0.75835369,941.59,940.26,2.5741607]
[1768404668496,0.75835369,941.58,940.26,2.5741607]
[1768404668697,0.75835369,941.57,940.26,2.5741607]
[1768404668898,0.75835369,941.56,940.26,2.5741607]
[1768404669095,1.702,941.61,940.26,2.5741607]
[1768404669300,0.75831775,941.6,940.26,2.5741607]
[1768404669498,0.75831775,941.59,940.26,2.5741607]
[1768404669699,0.75831775,941.58,940.26,2.5741607]
[1768404669896,0.75831775,941.57,940.26,2.5741607]
[1768404670196,0.75831775,941.56,940.26,2.5741607]
[1768404670398,1.702,941.61,940.26,2.5741607]
[1768404670597,0.75828355,941.6,940.26,2.5741607]
[1768404670800,0.75828355,941.59,940.22,2.5741607]
[1768404671001,0.75828355,941.58,940.22,2.5741607]
[1768404671196,0.75828355,941.57,940.22,2.5741607]
[1768404671401,0.75828355,941.56,940.17,2.5741607]
[1768404671701,0.75828355,941.55,940.17,2.5741607]
[1768404671897,0.75828355,941.54,940.17,2.5741607]
[1768404672200,0.75828355,941.53,940.17,2.5741607]
[1768404672500,0.75828355,941.52,940.17,2.5741607]
[1768404672697,0.75828355,941.51,940.17,2.5741607]
[1768404672998,0.75828355,941.5,940.13,2.5741607]
[1768404673201,0.75828355,941.49,940.13,2.5741607]
[1768404673502,0.75828355,941.48,940.13,2.5741607]
[1768404673802,0.75828355,941.47,940.13,2.5741607]
[1768404674000,0.75828355,941.46,940.13,2.5741607]
[1768404674205,0.75828355,941.45,940.13,2.5741607]
[1768404674403,0.75828355,941.44,940.13,2.5741607]
[1768404674699,0.75828355,941.43,940.13,2.5741607]
[1768404675004,1.702,941.61,940.13,2.5741607]
[1768404675303,0.75840657,941.6,940.13,2.5741607]
[1768404675503,0.75840657,941.59,940.12,0.18483601]
[1768404675700,0.75840657,941.58,940.12,0.18483601]
[1768404675904,0.75840657,941.57,940.12,0.18483601]
[1768404676204,0.75840657,941.56,940.12,0.18483601]
[1768404676404,0.75840657,941.55,940.12,0.18483601]
[1768404676703,0.75840657,941.54,940.12,0.18483601]
[1768404676904,0.75840657,941.53,940.12,0.18483601]
[1768404677203,0.75840657,941.52,940.12,0.18483601]
[1768404677402,0.75840657,941.51,940.12,0.18483601]
[1768404677601,0.75840657,941.5,940.12,0.18483601]
[1768404677797,0.75840657,941.49,940.12,0.18483601]
[1768404677998,0.75840657,941.48,940.12,0.18483601]
[1768404678203,0.75840657,941.47,940.12,0.18483601]
[1768404678404,0.75840657,941.46,940.12,0.18483601]
[1768404678609,0.75840657,941.45,940.12,0.18483601]
[1768404678905,0.75840657,941.44,940.12,0.18483601]
[1768404679103,0.75840657,941.43,940.12,0.18483601]
[1768404679401,0.75840657,941.42,940.12,0.18483601]
[1768404679702,0.75840657,941.41,940.12,0.18483601]
[1768404679905,1.702,941.61,940.12,0.18483601]
[1768404679906,0.75840657,941.4,940.12,0.18483601]
[1768404680104,0.75840657,941.39,940.12,0.18483601]
[1768404680303,0.75840657,941.38,940.12,0.18483601]
[1768404680506,0.75840657,941.37,940.12,0.18483601]
[1768404680702,0.75840657,941.36,940.12,0.18483601]
[1768404680904,0.75840657,941.35,940.12,0.18483601]
[1768404681105,0.75840657,941.34,940.12,0.18483601]
[1768404681306,0.75840657,941.33,940.12,0.18483601]
[1768404681604,0.75840657,941.32,940.12,0.18483601]
[1768404681802,0.75840657,941.31,940.12,0.18483601]
[1768404682006,0.75840657,941.3,940.12,0.18483601]
[1768404682305,0.75840657,941.29,940.12,0.18483601]
[1768404682505,1.702,941.61,940.12,0.18483601]
[1768404682703,0.75845919,941.6,940.12,0.18483601]
[1768404683007,0.75845919,941.59,940.12,0.18483601]
[1768404683207,1.702,941.61,940.12,0.18483601]
[1768404683208,0.75845919,941.58,940.12,0.18483601]
[1768404683410,0.75845919,941.57,940.12,0.18483601]
[1768404683612,0.75845919,941.56,940.12,0.18483601]
[1768404683908,0.75845919,941.55,940.12,0.18483601]
[1768404684110,0.75845919,941.54,940.12,0.18483601]
[1768404684307,0.75845919,941.53,940.12,0.18483601]
[1768404684611,0.75845919,941.52,940.12,0.18483601]
[1768404684814,0.75845919,941.51,940.12,0.18483601]
[1768404685013,0.75845919,941.5,940.12,0.18483601]
[1768404685212,0.75845919,941.49,940.12,0.18483601]
[1768404685410,0.75845919,941.48,940.12,0.18483601]
[1768404685712,0.75845919,941.47,940.12,0.18483601]
[1768404685908,0.75845919,941.46,940.12,0.18483601]
[1768404686110,0.75845919,941.45,940.12,0.18483601]
[1768404686309,0.75845919,941.44,940.12,0.18483601]
[1768404686613,0.75845919,941.43,940.12,0.18483601]
[1768404686811,0.75845919,941.42,940.12,0.18483601]
[1768404687010,0.75845919,941.41,940.12,0.18483601]
[1768404687311,0.18471436,942.92,940.12,0.18483601]
[1768404687611,0.01206707,942.35,940.12,0.18483601]
[1768404687813,0.75893511,942.34,940.12,0.18483601]
[1768404688015,0.75893511,942.33,940.12,0.18483601]
[1768404688216,0.75893511,942.32,940.12,0.18483601]
[1768404688416,0.75893511,942.31,940.12,2.75899671]
[1768404688713,0.75893511,942.3,940.12,2.75899671]
[1768404688915,0.75893511,942.29,940.12,0.18483601]
[1768404689114,0.75893511,942.28,940.12,0.18483601]
[1768404689314,0.75893511,942.27,940.12,0.18483601]
[1768404689515,0.75893511,942.26,940.12,0.18483601]
[1768404689816,0.75893511,942.25,940.12,0.18483601]
[1768404690012,0.75893511,942.24,940.12,0.18483601]
[1768404690212,0.75893511,942.23,940.12,0.18483601]
[1768404690510,0.75915958,942.22,940.12,0.18483601]
[1768404690717,0.75915958,942.21,940.12,0.18483601]
[1768404690915,0.75915958,942.2,940.12,0.18483601]
[1768404691116,0.75915958,942.19,940.12,0.18483601]
[1768404691415,0.75915958,942.18,940.12,0.18483601]
[1768404691616,0.75915958,942.17,940.12,0.18483601]
[1768404691911,0.75915958,942.16,940.12,0.18483601]
[1768404692112,0.75915958,942.15,940.12,0.18483601]
[1768404692310,0.75915958,942.14,940.12,0.18483601]
[1768404692510,0.75915958,942.13,940.12,0.18483601]
[1768404692712,0.75915958,942.12,940.12,0.18483601]
[1768404693010,0.75915958,942.11,940.12,0.18483601]
[1768404693210,0.75915958,942.1,940.12,0.18483601]
[1768404693410,0.75915958,942.09,940.12,0.18483601]
[1768404693614,0.75915958,942.08,940.12,0.18483601]
[1768404693911,0.75915958,942.07,940.12,0.18483601]
[1768404694115,0.75915958,942.06,940.12,0.18483601]
[1768404694412,0.75915958,942.05,940.12,0.18483601]
[1768404694613,0.75915958,942.04,940.12,0.18483601]
[1768404694813,0.75915958,942.03,940.12,0.18483601]
[1768404695013,0.75915958,942.02,940.12,0.18483601]
[1768404695212,0.75915958,942.01,940.12,0.18483601]
[1768404695416,0.75915958,942.0,940.12,0.18483601]
[1768404695612,0.75915958,941.99,940.12,0.18483601]
[1768404695815,0.75915958,941.98,940.12,0.18483601]
[1768404696016,0.75915958,941.97,940.12,0.18483601]
[1768404696213,0.75915958,941.96,940.12,0.18483601]
[1768404696516,0.75915958,941.95,940.12,0.18483601]
[1768404696713,0.75915958,941.94,940.12,0.18483601]
[1768404696912,0.75915958,941.93,940.12,0.18483601]
[1768404697116,0.75915958,941.92,940.12,0.18483601]
[1768404697316,0.75915958,941.91,940.12,0.18483601]
[1768404697513,0.75915958,941.9,940.12,0.18483601]
[1768404697813,1.403,942.34,940.12,0.18483601]
[1768404697814,0.75915958,941.89,940.12,0.18483601]
[1768404698018,0.75915958,941.88,940.12,0.18483601]
[1768404698215,0.75915958,941.87,940.12,0.18483601]
[1768404698411,1.403,942.34,940.12,0.18483601]
[1768404698412,0.75915958,941.86,940.12,0.18483601]
[1768404698611,0.75915958,941.85,940.12,0.18483601]
[1768404698812,0.75915958,941.84,940.12,0.18483601]
[1768404699017,0.75915958,941.83,940.12,0.18483601]
[1768404699218,0.75915958,941.82,940.12,0.18483601]
[1768404699417,0.75915958,941.81,940.12,0.18483601]
[1768404699616,0.75915958,941.8,940.12,0.18483601]
[1768404699815,0.75915958,941.79,940.12,0.18483601]
[1768404700017,0.75915958,941.78,940.12,0.18483601]
[1768404700317,0.75915958,941.77,940.12,0.18483601]
[1768404700517,0.75915958,941.76,940.12,0.18483601]
[1768404700713,0.75915958,941.75,940.12,0.18483601]
[1768404700917,0.75915958,941.74,940.12,0.18483601]
[1768404701116,0.75915958,941.73,940.12,0.18483601]
[1768404701315,0.75915958,941.72,940.12,0.18483601]
[1768404701515,0.75915958,941.71,940.12,0.18483601]
[1768404701719,0.75915958,941.7,940.12,0.18483601]
[1768404701919,0.75915958,941.69,940.12,0.18483601]
[1768404702119,0.75915958,941.68,940.12,0.18483601]
[1768404702318,0.75915958,941.67,940.12,0.18483601]
[1768404702520,0.75915958,941.66,940.12,0.18483601]
[1768404702722,0.75915958,941.65,940.12,0.18483601]
[1768404702922,0.75915958,941.64,940.12,0.18483601]
[1768404703120,0.75915958,941.63,940.12,0.18483601]
[1768404703321,0.75915958,941.62,940.12,0.18483601]
[1768404703521,0.75915958,941.61,940.12,0.18483601]
[1768404703718,0.75915958,941.6,940.12,0.18483601]
[1768404703919,0.75915958,941.59,940.12,0.18483601]
[1768404704120,0.75961592,941.58,940.12,0.18483601]
[1768404704422,0.75961592,941.57,940.12,0.18483601]
[1768404704623,0.75961592,941.56,940.12,0.18483601]
[1768404704822,0.75961592,941.55,940.12,0.18483601]
[1768404705025,0.75961592,941.54,940.12,0.18483601]
[1768404705222,0.75961592,941.53,940.12,0.18483601]
[1768404705422,0.75961592,941.52,940.12,0.18483601]
[1768404705726,0.75961592,941.51,940.12,0.18483601]
[1768404705926,0.75961592,941.5,940.12,0.18483601]
[1768404706121,0.75961592,941.49,940.12,0.18483601]
[1768404706421,0.75961592,941.48,940.12,0.18483601]
[1768404706626,0.75961592,941.47,940.12,0.18483601]
[1768404706826,0.75961592,941.46,940.12,0.18483601]
[1768404707024,0.75961592,941.45,940.12,0.18483601]
[1768404707225,0.75961592,941.44,940.12,0.18483601]
[1768404707428,0.75961592,941.43,940.12,0.18483601]
[1768404707627,0.75961592,941.42,940.12,0.18483601]
[1768404707825,0.75961592,941.41,940.12,0.18483601]
[1768404708025,0.75961592,941.4,940.12,0.18483601]
[1768404708226,0.75961592,941.39,940.12,0.18483601]
[1768404708426,0.75961592,941.38,940.12,0.18483601]
[1768404708726,0.75961592,941.37,940.12,0.18483601]
[1768404709029,0.75961592,941.36,940.12,0.18483601]
[1768404709229,0.75961592,941.35,940.12,0.18483601]
[1768404709426,0.75961592,941.34,940.12,0.18483601]
[1768404709624,0.75961592,941.33,940.12,0.18483601]
[1768404709829,0.75961592,941.32,940.12,0.18483601]
[1768404710026,0.75961592,941.31,940.12,0.18483601]
[1768404710226,0.75961592,941.3,940.12,0.18483601]